bitfinex-derivatives/quotes_ETHF0:USTF0_20240928
["timestamp","ask_amount","ask_price","bid_price","bid_amount"]
[1727553128606,4.6752142,2678.9,2678.8,1.1758]
[1727553128900,1.7373,2678.9,2678.8,1.1758]
[1727553129492,4.6751482,2678.9,2678.8,1.1758]
[1727553129696,1.7373,2678.9,2678.8,1.1758]
[1727553130505,4.67501729,2678.9,2678.8,1.1758]
[1727553130701,2.93771729,2678.9,2678.8,1.1758]
[1727553130896,3.34051729,2678.9,2678.8,1.1758]
[1727553131293,3.34051729,2678.9,2678.7,0.752]
[1727553131498,3.34051729,2678.9,2678.4,0.348]
[1727553131499,3.31091729,2678.8,2678.6,0.37322]
[1727553131700,3.33121729,2678.8,2678.7,0.37322]
[1727553132101,3.33119009,2678.8,2678.7,0.37322]
[1727553132906,4.67119009,2678.8,2678.7,0.37322]
[1727553133802,1.7335,2678.8,2678.7,0.37322]
[1727553134006,5.16150117,2678.8,2678.7,0.37322]
[1727553134213,1.7335,2678.8,2678.7,0.37322]
[1727553135412,4.67055346,2678.8,2678.7,0.37322]
[1727553135611,1.7335,2678.8,2678.7,0.37322]
[1727553136818,4.67046306,2678.8,2678.7,0.37322]
[1727553137219,4.67042362,2678.8,2678.7,0.37322]
[1727553137818,4.67041039,2678.8,2678.7,0.37322]
[1727553138012,4.67037456,2678.8,2678.7,0.37322]
[1727553138915,1.7335,2678.8,2678.7,0.37322]
[1727553139317,4.67034915,2678.8,2678.7,0.37322]
[1727553139913,1.7335,2678.8,2678.7,0.37322]
[1727553140523,1.7335,2678.8,2678.5,1.1937]
[1727553140727,4.27691891,2678.6,2678.5,1.56694]
[1727553141325,4.65401891,2678.6,2678.5,1.56694]
[1727553141925,1.7171,2678.6,2678.5,1.56694]
[1727553142121,4.65401891,2678.6,2678.5,1.56694]
[1727553142321,1.7171,2678.6,2678.5,1.56694]
[1727553144333,4.65401891,2678.6,2678.5,1.56694]
[1727553144529,1.7171,2678.6,2678.5,1.56694]
[1727553147736,1.7171,2678.6,2678.3,3.2078]
[1727553147936,1.7138,2678.5,2678.4,0.37325]
[1727553148532,1.7138,2678.5,2678.4,0.76445]
[1727553148732,0.3738,2678.5,2678.4,0.76445]
[1727553149236,3.31071891,2678.5,2678.4,0.76445]
[1727553149433,0.3738,2678.5,2678.4,0.76445]
[1727553150936,4.65401891,2678.6,2678.5,0.37324]
[1727553151738,4.65401891,2678.6,2678.5,0.77474]
[1727553163939,5.14510117,2678.6,2678.5,0.77474]
[1727553171354,5.14510117,2678.6,2678.5,0.37324]
[1727553172158,1.7171,2678.6,2678.5,0.37324]
[1727553173261,4.65268579,2678.6,2678.5,0.37324]
[1727553174252,1.7171,2678.6,2678.5,0.37324]
[1727553180665,5.14510117,2678.6,2678.5,0.37324]
[1727553182265,5.51833117,2678.6,2678.5,0.37324]
[1727553183070,5.14510117,2678.6,2678.5,0.37324]
[1727553185064,0.37326,2678.4,2678.3,3.58106]
[1727553185269,4.651167,2678.4,2678.3,3.58106]
[1727553185775,4.277907,2678.4,2678.3,3.58106]
[1727553186068,4.651167,2678.4,2678.3,3.58106]
[1727553186274,1.71326,2678.4,2678.3,3.58106]
[1727553186658,4.6519976,2678.4,2678.3,3.58106]
[1727553187058,1.71326,2678.4,2678.3,3.58106]
[1727553187269,5.14126117,2678.4,2678.3,3.58106]
[1727553187766,4.76800117,2678.4,2678.3,3.58106]
[1727553189875,1.71326,2678.4,2678.3,3.2078]
[1727553190765,5.44686,2678.4,2678.3,3.2078]
[1727553191672,5.44686,2678.4,2678.3,3.58107]
[1727553193762,5.0736,2678.4,2678.3,3.58107]
[1727553194162,8.87518235,2678.4,2678.3,3.2078]
[1727553194978,8.50192235,2678.4,2678.3,3.58107]
[1727553197071,14.70192235,2678.4,2678.3,3.58107]
[1727553200972,10.96832235,2678.4,2678.3,3.58107]
[1727553201280,10.96832235,2678.4,2678.3,0.37327]
[1727553206482,11.34158235,2678.4,2678.3,0.37327]
[1727553207478,10.96832235,2678.4,2678.3,0.37327]
[1727553212694,11.34158235,2678.4,2678.3,0.37327]
[1727553213786,10.96832235,2678.4,2678.3,0.37327]
[1727553214786,11.34158235,2678.4,2678.3,0.37327]
[1727553215187,10.96832235,2678.4,2678.3,0.37327]
[1727553219085,10.96832235,2678.4,2678.3,0.75577]
[1727553220287,11.34158235,2678.4,2678.3,0.75577]
[1727553221092,10.96832235,2678.4,2678.3,0.75577]
[1727553225097,11.00282235,2678.4,2678.3,0.75577]
[1727553225789,11.37608235,2678.4,2678.3,0.75577]
[1727553226293,11.37608235,2678.4,2678.3,0.3825]
[1727553226893,11.37608235,2678.4,2678.3,0.75577]
[1727553227100,7.94776,2678.4,2678.3,0.75577]
[1727553227296,7.94776,2678.4,2678.3,0.37327]
[1727553229999,7.5745,2678.4,2678.3,0.37327]
[1727553230498,7.94776,2678.4,2678.3,0.37327]
[1727553230703,11.86010055,2678.4,2678.3,0.37327]
[1727553238003,0.37327,2678.3,2678.2,0.37328]
[1727553238311,5.52762831,2678.3,2678.2,0.37328]
[1727553239303,5.15435831,2678.3,2678.2,0.37328]
[1727553239500,2.09927,2678.3,2678.2,0.37328]
[1727553240499,1.726,2678.3,2678.2,0.37328]
[1727553243101,3.91234055,2678.4,2678.3,0.37327]
[1727553243296,3.42851206,2678.6,2678.5,0.37324]
[1727553243510,4.76851206,2678.6,2678.5,0.37324]
[1727553243709,4.76851206,2678.6,2678.5,4.10684]
[1727553246113,4.76851206,2678.6,2678.5,0.37324]
[1727553249210,1.34,2678.6,2678.5,0.37324]
[1727553249611,4.76851206,2678.6,2678.5,0.37324]
[1727553253314,1.34,2678.6,2678.5,0.37324]
[1727553255110,4.76619688,2678.6,2678.5,0.37324]
[1727553256620,1.34,2678.6,2678.5,0.37324]
[1727553257018,4.7659934,2678.6,2678.5,0.37324]
[1727553260715,5.1392334,2678.6,2678.5,0.37324]
[1727553261623,5.1392334,2678.6,2678.4,0.3959]
[1727553261624,1.71324,2678.6,2678.4,0.76915]
[1727553261825,4.67196653,2678.5,2678.4,0.76915]
[1727553264326,5.04520653,2678.5,2678.4,0.76915]
[1727553264728,4.67196653,2678.5,2678.4,0.76915]
[1727553278940,3.33196653,2678.5,2678.4,0.76915]
[1727553282441,0.3954,2678.5,2678.4,0.76915]
[1727553284954,3.33287109,2678.5,2678.4,0.76915]
[1727553287149,0.3954,2678.5,2678.4,0.76915]
[1727553288259,5.1562934,2678.6,2678.5,0.37324]
[1727553289162,1.7303,2678.6,2678.5,0.37324]
[1727553299870,5.65091811,2678.6,2678.5,0.37324]
[1727553301871,1.7303,2678.6,2678.5,0.37324]
[1727553303367,5.65091811,2678.6,2678.5,0.37324]
[1727553303878,1.7303,2678.6,2678.5,0.37324]
[1727553305073,5.65091811,2678.6,2678.5,0.37324]
[1727553305976,1.7303,2678.6,2678.5,0.37324]
[1727553306568,5.65091811,2678.6,2678.5,0.37324]
[1727553306970,1.7303,2678.6,2678.5,0.37324]
[1727553308867,5.65018389,2678.6,2678.5,0.37324]
[1727553309976,1.7303,2678.6,2678.5,0.37324]
[1727553310368,1.7303,2678.6,2678.5,0.37230489]
[1727553313082,5.65008493,2678.6,2678.5,0.37230489]
[1727553313486,1.7303,2678.6,2678.5,0.37230489]
[1727553314387,5.65014305,2678.6,2678.5,0.37230489]
[1727553314986,1.7303,2678.6,2678.5,0.37230489]
[1727553316083,5.65014305,2678.6,2678.5,0.37230489]
[1727553317077,1.7303,2678.6,2678.5,0.37230489]
[1727553318288,5.65014305,2678.6,2678.5,0.37230489]
[1727553319181,1.7303,2678.6,2678.5,0.37230489]
[1727553320387,5.65014305,2678.6,2678.5,0.37230489]
[1727553321093,1.7303,2678.6,2678.5,0.37230489]
[1727553322383,5.65014305,2678.6,2678.5,0.37230489]
[1727553323187,1.7303,2678.6,2678.5,0.37230489]
[1727553324390,5.65014305,2678.6,2678.5,0.37230489]
[1727553325297,1.7303,2678.6,2678.5,0.37230489]
[1727553326600,5.65014305,2678.6,2678.5,0.37230489]
[1727553326994,6.02337305,2678.6,2678.4,0.3959]
[1727553327301,1.7303,2678.6,2678.5,0.37324]
[1727553328589,5.65014305,2678.6,2678.5,0.37324]
[1727553330202,1.7303,2678.6,2678.5,0.37324]
[1727553333400,5.65009134,2678.6,2678.5,0.37324]
[1727553333795,6.02332134,2678.6,2678.5,0.37324]
[1727553334098,5.65009134,2678.6,2678.5,0.37324]
[1727553334702,1.7303,2678.6,2678.5,0.37324]
[1727553336296,2.10353,2678.6,2678.5,0.37324]
[1727553336704,2.13803,2678.6,2678.5,0.37324]
[1727553336999,5.68442075,2678.6,2678.5,0.37324]
[1727553337205,1.7648,2678.6,2678.5,0.37324]
[1727553340403,0.4248,2678.6,2678.5,0.37324]
[1727553340905,0.0345,2678.6,2678.5,0.37324]
[1727553341107,0.0345,2678.6,2678.5,1.11894]
[1727553342307,0.40773,2678.6,2678.5,1.11894]
[1727553343008,0.0345,2678.6,2678.5,1.11894]
[1727553345207,3.95412075,2678.6,2678.5,1.11894]
[1727553352315,0.0345,2678.6,2678.5,1.11894]
[1727553354420,4.66585075,2678.7,2678.6,0.37323]
[1727553357015,4.29262075,2678.7,2678.6,0.37323]
[1727553357219,2.93882696,2678.8,2678.7,0.93305]
[1727553357519,3.5155177,2679.0,2678.9,8.90000902]
[1727553357520,2.93882696,2679.0,2678.9,8.90000902]
[1727553357717,2.93882696,2679.3,2679.0,0.93295]
[1727553357924,2.93882696,2679.3,2679.1,1.34]
[1727553358131,3.4285177,2679.4,2679.3,0.37313]
[1727553358132,2.93882696,2679.4,2679.3,0.37313]
[1727553359232,2.93882696,2679.4,2679.1,1.34]
[1727553359233,5.44552696,2679.5,2679.4,0.37312]
[1727553359426,5.44552696,2679.5,2679.4,0.37443369]
[1727553359826,5.44552696,2679.5,2679.4,0.00131369]
[1727553360022,5.81863696,2679.5,2679.4,0.00131369]
[1727553360222,0.37317,2679.1,2678.9,0.348]
[1727553360426,4.54160788,2679.0,2678.6,1.1327]
[1727553360627,4.27305225,2678.7,2678.6,1.1327]
[1727553360825,4.27305225,2678.7,2678.6,0.7847]
[1727553361435,1.34,2678.7,2678.6,0.37323]
[1727553361625,2.1079,2678.7,2678.6,0.37323]
[1727553361826,5.53012788,2678.7,2678.6,0.37323]
[1727553362727,2.1079,2678.7,2678.6,0.37323]
[1727553362927,5.53012788,2678.7,2678.6,0.37323]
[1727553363128,2.1079,2678.7,2678.6,0.37323]
[1727553363327,5.53012788,2678.7,2678.6,0.37323]
[1727553363536,5.92442788,2678.7,2678.6,0.37323]
[1727553364628,2.5022,2678.7,2678.6,0.37323]
[1727553365634,5.92442788,2678.7,2678.6,0.37323]
[1727553366538,2.5022,2678.7,2678.6,0.37323]
[1727553373147,2.5022,2678.7,2678.6,3.58103]
[1727553373347,2.5367,2678.7,2678.6,3.58103]
[1727553373638,2.5367,2678.7,2678.6,0.37323]
[1727553375345,0.8245,2678.7,2678.6,0.37323]
[1727553379945,3.7569771,2678.7,2678.6,0.37323]
[1727553381147,0.8245,2678.7,2678.6,0.37323]
[1727553381352,3.7569771,2678.7,2678.6,0.37323]
[1727553382349,0.8245,2678.7,2678.6,0.37323]
[1727553385650,2.1645,2678.7,2678.6,0.37323]
[1727553390956,2.13,2678.7,2678.6,0.37323]
[1727553394070,5.8636,2678.7,2678.4,3.2078]
[1727553394255,5.0317171,2678.6,2678.4,3.58106]
[1727553395257,4.6584771,2678.6,2678.4,3.58106]
[1727553397358,8.08070498,2678.6,2678.4,3.58106]
[1727553397563,2.9324771,2678.5,2678.4,3.58106]
[1727553397767,2.9324771,2678.5,2678.4,0.37326]
[1727553404060,5.14822788,2678.6,2678.5,0.37324]
[1727553404468,1.726,2678.6,2678.5,0.37324]
[1727553405263,5.14822788,2678.6,2678.5,0.37324]
[1727553406268,5.14822788,2678.6,2678.3,3.58106]
[1727553406269,0.37325,2678.5,2678.3,3.58106]
[1727553406462,4.67704319,2678.4,2678.3,3.58106]
[1727553406664,5.07814319,2678.4,2678.3,3.58106]
[1727553407063,2.1416,2678.4,2678.3,3.58106]
[1727553407666,5.07814319,2678.4,2678.3,3.58106]
[1727553408071,2.1416,2678.4,2678.3,3.58106]
[1727553412470,5.07814319,2678.4,2678.3,3.58106]
[1727553413978,11.27814319,2678.4,2678.3,3.58106]
[1727553415968,8.3416,2678.4,2678.3,3.58106]
[1727553416367,11.27814319,2678.4,2678.3,3.58106]
[1727553417471,8.3416,2678.4,2678.3,3.58106]
[1727553418462,11.27814319,2678.4,2678.3,3.58106]
[1727553419474,8.3416,2678.4,2678.3,3.58106]
[1727553421566,11.65141319,2678.4,2678.1,0.4007]
[1727553421775,4.27654319,2678.2,2678.1,0.3733]
[1727553423970,2.93654319,2678.2,2678.1,0.3733]
[1727553424271,4.27654319,2678.3,2678.2,0.37329]
[1727553425876,1.34,2678.3,2678.2,0.37329]
[1727553426380,4.27654319,2678.3,2678.2,0.37329]
[1727553429682,1.34,2678.3,2678.2,0.37329]
[1727553429873,4.27654319,2678.3,2678.2,0.37329]
[1727553431886,2.93654319,2678.3,2678.2,0.37329]
[1727553434683,2.93654319,2678.3,2678.2,0.76419]
[1727553434882,3.82332788,2678.4,2678.3,0.37327]
[1727553436682,3.82434801,2678.4,2678.3,0.37327]
[1727553437084,0.4011,2678.4,2678.3,0.37327]
[1727553437591,3.82454595,2678.4,2678.3,0.37327]
[1727553437890,3.82453545,2678.4,2678.3,0.37327]
[1727553438085,0.4011,2678.4,2678.3,0.37327]
[1727553442784,3.8251049,2678.4,2678.3,0.37327]
[1727553445491,4.1932049,2678.4,2678.3,0.37327]
[1727553446494,4.2277049,2678.4,2678.3,0.37327]
[1727553449697,0.8037,2678.4,2678.3,0.37327]
[1727553453111,4.72332075,2678.4,2678.3,0.37327]
[1727553453403,0.8037,2678.4,2678.3,0.37327]
[1727553454606,4.72332075,2678.4,2678.3,0.37327]
[1727553455409,0.8037,2678.4,2678.3,0.37327]
[1727553456706,4.72332075,2678.4,2678.3,0.37327]
[1727553457505,0.8037,2678.4,2678.3,0.37327]
[1727553457708,8.14864888,2678.4,2678.3,0.37327]
[1727553457906,4.22902813,2678.4,2678.3,0.37327]
[1727553462616,0.8037,2678.4,2678.3,0.37327]
[1727553464008,0.7692,2678.4,2678.3,0.37327]
[1727553464810,4.68882075,2678.4,2678.3,0.37327]
[1727553465318,0.7692,2678.4,2678.3,0.37327]
[1727553467420,1.14246,2678.4,2678.3,0.37327]
[1727553472825,5.05996702,2678.4,2678.3,0.37327]
[1727553483031,5.09446702,2678.4,2678.3,0.37327]
[1727553484332,4.72120702,2678.4,2678.3,0.37327]
[1727553485526,5.09446702,2678.4,2678.3,0.37327]
[1727553490835,4.72120702,2678.4,2678.3,0.37327]
[1727553491236,5.09446702,2678.4,2678.3,0.37327]
[1727553491432,4.72120702,2678.4,2678.3,0.37327]
[1727553492139,2.97026783,2678.4,2678.3,16.52105]
[1727553492336,0.0345,2678.4,2678.3,16.52105]
[1727553495232,0.0345,2678.4,2678.3,10.52105]
[1727553495437,0.0345,2678.4,2678.3,9.58786]
[1727553495640,0.0345,2678.4,2678.3,10.07128896]
[1727553497236,0.0345,2678.4,2678.3,9.58786]
[1727553497743,0.0345,2678.4,2678.3,15.58786]
[1727553497944,0.0345,2678.4,2678.3,9.58786]
[1727553499432,0.0345,2678.4,2678.3,15.58786]
[1727553500247,0.0345,2678.4,2678.3,16.52105]
[1727553500438,0.087,2678.9,2678.8,0.3732]
[1727553500643,0.4048,2679.0,2678.9,0.37319]
[1727553503051,3.34056783,2679.0,2678.9,0.37319]
[1727553504438,3.70916783,2679.1,2679.0,0.37318]
[1727553504639,2.93576783,2679.1,2679.0,1.71318]
[1727553504849,0.3853,2679.2,2679.1,0.37316]
[1727553505049,2.93576783,2679.4,2679.3,0.37313]
[1727553505246,0.3853,2679.5,2679.3,1.34]
[1727553506653,0.3853,2679.5,2679.4,0.37312]
[1727553520049,0.4198,2679.5,2679.4,0.37312]
[1727553535369,0.3853,2679.5,2679.4,0.37312]
[1727553538175,5.39045783,2679.7,2679.6,0.37309]
[1727553538374,5.76025783,2679.7,2679.6,0.37309]
[1727553539775,2.93576783,2679.7,2679.6,0.37309]
[1727553539981,2.93576783,2679.8,2679.7,0.37308]
[1727553540178,4.28730702,2679.9,2679.8,0.37306]
[1727553540384,3.78925023,2679.9,2679.8,0.37306]
[1727553541469,0.3698,2679.9,2679.8,0.37306]
[1727553543582,0.74285,2679.9,2679.8,0.37306]
[1727553546375,4.66035702,2679.9,2679.8,0.37306]
[1727553547387,4.16389788,2679.9,2679.8,0.37306]
[1727553550584,0.74285,2679.9,2679.8,0.37306]
[1727553550783,4.16642788,2679.9,2679.8,0.37306]
[1727553554181,4.20092788,2679.9,2679.8,0.37306]
[1727553555384,0.77735,2679.9,2679.8,0.37306]
[1727553555590,5.18408061,2679.9,2679.8,0.37306]
[1727553562297,4.19991868,2679.9,2679.8,0.37306]
[1727553564894,3.82686868,2679.9,2679.8,0.37306]
[1727553565695,4.19991868,2679.9,2679.8,0.37306]
[1727553566093,3.82686868,2679.9,2679.8,0.37306]
[1727553569297,0.4043,2679.9,2679.8,0.37306]
[1727553569497,3.79236868,2679.9,2679.8,0.37306]
[1727553570087,4.16541868,2679.9,2679.8,0.37306]
[1727553570991,3.79236868,2679.9,2679.8,0.37306]
[1727553571798,3.79236868,2679.9,2679.8,0.77006]
[1727553577399,4.28130707,2679.9,2679.8,0.77006]
[1727553584218,4.28130707,2679.9,2679.8,0.37306]
[1727553584406,0.3698,2679.9,2679.8,0.37306]
[1727553585308,0.74285,2679.9,2679.7,1.71306]
[1727553585509,4.70709171,2679.8,2679.7,0.37308]
[1727553585709,5.55755936,2679.8,2679.7,0.37308]
[1727553586410,5.93062936,2679.8,2679.7,0.37308]
[1727553587606,5.55755936,2679.8,2679.7,0.37308]
[1727553588003,5.93061936,2679.8,2679.7,0.37308]
[1727553589010,5.55755936,2679.8,2679.7,0.37308]
[1727553591310,5.93061936,2679.8,2679.7,0.37308]
[1727553591913,5.55755936,2679.8,2679.7,0.37308]
[1727553593305,5.93061936,2679.8,2679.7,0.37308]
[1727553593508,5.55755936,2679.8,2679.7,0.37308]
[1727553609521,2.1304,2679.8,2679.7,0.37308]
[1727553610117,12.0594,2679.8,2679.4,0.348]
[1727553610322,0.37308,2679.7,2679.6,0.37308]
[1727553611114,0.3731,2679.6,2679.5,0.3731]
[1727553611327,4.20644085,2679.6,2679.5,0.3731]
[1727553611621,4.20644085,2679.6,2679.5,0.37311]
[1727553612319,5.54644085,2679.6,2679.5,0.37311]
[1727553612525,5.17334085,2679.6,2679.5,0.37311]
[1727553613822,5.54644085,2679.6,2679.5,0.37311]
[1727553614813,8.3158,2679.6,2679.5,0.37311]
[1727553615529,7.9427,2679.6,2679.5,0.37311]
[1727553615823,11.36998416,2679.6,2679.5,0.37311]
[1727553616925,10.02998416,2679.6,2679.5,0.37311]
[1727553617221,3.42728416,2679.7,2679.6,0.37309]
[1727553617527,3.91669171,2679.8,2679.7,0.37308]
[1727553617722,10.11369171,2679.9,2679.8,0.37306]
[1727553618324,6.197,2679.9,2679.8,0.37306]
[1727553620027,10.11369171,2679.9,2679.8,0.37306]
[1727553620229,6.197,2679.9,2679.8,0.37306]
[1727553620429,10.11369171,2679.9,2679.8,0.37306]
[1727553621028,6.197,2679.9,2679.8,0.37306]
[1727553621428,10.11369171,2679.9,2679.8,0.37306]
[1727553621830,10.48674171,2679.9,2679.8,0.37306]
[1727553628331,0.37306,2679.8,2679.7,0.74957]
[1727553631339,3.80010168,2679.8,2679.7,0.74957]
[1727553631540,0.37306,2679.8,2679.7,0.74957]
[1727553631749,9.62404168,2679.9,2679.8,0.37306]
[1727553631750,9.99710168,2679.9,2679.8,0.37306]
[1727553631942,0.37306,2679.8,2679.7,0.74957]
[1727553632131,3.80010168,2679.8,2679.7,0.74957]
[1727553632533,3.42704168,2679.8,2679.7,0.74957]
[1727553632831,3.80010168,2679.8,2679.7,0.74957]
[1727553633035,0.37306,2679.8,2679.7,0.74957]
[1727553634835,0.74866,2679.8,2679.7,0.74957]
[1727553635337,4.17570168,2679.8,2679.7,0.74957]
[1727553635637,0.37308,2679.7,2679.6,0.77139]
[1727553635834,3.31062988,2679.7,2679.6,0.37309]
[1727553636028,0.37308,2679.7,2679.6,0.37309]
[1727553637038,1.34,2679.7,2679.2,3.9551]
[1727553637238,4.65077747,2679.5,2679.4,0.37311]
[1727553637632,2.88381,2679.5,2679.4,0.37311]
[1727553638131,2.5107,2679.5,2679.2,4.7593]
[1727553638333,2.88381,2679.5,2679.4,0.37312]
[1727553639045,2.5107,2679.5,2679.4,0.37312]
[1727553639232,5.44809378,2679.5,2679.4,0.37312]
[1727553641440,5.82120378,2679.5,2679.4,0.37312]
[1727553642541,5.44809378,2679.5,2679.4,0.37312]
[1727553644736,11.64509378,2679.5,2679.4,0.37312]
[1727553651251,16.02061,2679.5,2679.4,0.37312]
[1727553651444,12.81281,2679.5,2679.4,0.37312]
[1727553651640,16.72950171,2679.5,2679.4,0.37312]
[1727553652347,12.81281,2679.5,2679.4,0.37312]
[1727553654148,0.37313,2679.4,2679.3,0.37312]
[1727553654447,5.13709505,2679.4,2679.3,0.37312]
[1727553654752,11.33409505,2679.4,2679.3,0.37312]
[1727553655847,11.33409505,2679.4,2679.2,0.37313]
[1727553655848,0.37314,2679.3,2679.2,0.37313]
[1727553656043,3.30798234,2679.3,2679.2,0.37313]
[1727553658853,0.37316,2679.2,2679.1,0.37316]
[1727553659049,2.45836,2679.2,2679.1,0.37316]
[1727553659646,5.39320234,2679.2,2679.1,0.37316]
[1727553660343,5.02004234,2679.2,2679.1,0.37316]
[1727553661151,2.0852,2679.2,2679.1,0.37316]
[1727553664862,8.2822,2679.2,2679.1,0.37316]
[1727553666257,7.9077,2679.2,2679.1,0.37316]
[1727553666453,7.9077,2679.2,2679.1,3.58096]
[1727553666650,0.3707,2679.2,2679.1,3.58096]
[1727553666856,0.3707,2679.2,2679.1,0.37316]
[1727553668155,9.13184234,2679.4,2679.0,0.93295]
[1727553668357,6.197,2679.4,2679.3,0.37313]
[1727553672768,9.13184234,2679.4,2679.3,0.37313]
[1727553673068,6.197,2679.4,2679.3,0.37313]
[1727553673566,9.13184234,2679.4,2679.3,0.37313]
[1727553673954,6.197,2679.4,2679.3,0.37313]
[1727553674358,9.13184234,2679.4,2679.3,0.37313]
[1727553674554,9.50496234,2679.4,2679.3,0.37313]
[1727553681272,6.57012,2679.4,2679.3,0.37313]
[1727553681667,0.37313,2679.3,2679.2,1.53204]
[1727553681867,3.67801409,2679.3,2679.2,1.53204]
[1727553682068,5.01801409,2679.3,2679.2,0.37314]
[1727553682271,4.64488409,2679.3,2679.2,0.37314]
[1727553683269,5.13466505,2679.3,2679.2,0.37314]
[1727553683467,5.50779505,2679.3,2679.2,0.37314]
[1727553684977,11.70479505,2679.3,2679.2,0.37314]
[1727553690279,8.28083,2679.3,2679.2,0.37314]
[1727553694174,0.37316,2679.1,2679.0,0.37316]
[1727553694372,1.71316,2679.1,2679.0,0.37316]
[1727553694575,5.13712505,2679.1,2679.0,0.37316]
[1727553695084,11.33412505,2679.1,2679.0,0.37316]
[1727553697173,0.37319,2679.0,2678.9,0.37318]
[1727553697370,0.75729,2679.0,2678.9,0.37318]
[1727553698876,3.69088004,2679.0,2678.9,0.37318]
[1727553701377,0.37319,2678.9,2678.8,3.2078]
[1727553701581,5.44583263,2678.9,2678.8,3.2078]
[1727553701784,0.37323,2678.7,2678.5,1.1226]
[1727553701981,4.64522736,2678.7,2678.6,0.37323]
[1727553703288,4.27199736,2678.7,2678.6,0.37323]
[1727553705080,1.34,2678.7,2678.6,0.37323]
[1727553714893,1.7186,2678.7,2678.6,0.37323]
[1727553715090,2.09182,2678.7,2678.6,0.37323]
[1727553715599,1.7186,2678.7,2678.6,0.37323]
[1727553718689,5.4522,2678.7,2678.4,0.4067]
[1727553718887,1.71325,2678.5,2678.4,0.37325]
[1727553719088,0.37326,2678.4,2678.3,0.75216]
[1727553719394,0.74946,2678.4,2678.3,0.75216]
[1727553719793,0.3762,2678.4,2678.3,0.75216]
[1727553720690,0.74946,2678.4,2678.3,0.75216]
[1727553720883,0.74946,2678.4,2678.3,0.3789]
[1727553721801,0.3762,2678.4,2678.3,0.37327]
[1727553721993,0.74947,2678.4,2678.3,0.37327]
[1727553723094,0.3762,2678.4,2678.3,0.37327]
[1727553723888,0.37327,2678.3,2678.2,0.75738]
[1727553724083,1.34,2678.3,2678.2,0.37328]
[1727553726301,0.0345,2678.4,2678.1,3.9962]
[1727553726302,1.3745,2678.4,2678.3,0.37327]
[1727553736902,1.74776,2678.4,2678.3,0.37327]
[1727553737103,1.3745,2678.4,2678.3,0.37327]
[1727553739206,1.74776,2678.4,2678.3,0.37327]
[1727553739800,1.3745,2678.4,2678.3,0.37327]
[1727553740504,1.74776,2678.4,2678.3,0.37327]
[1727553741605,1.71326,2678.4,2678.3,0.37327]
[1727553742699,4.64525736,2678.4,2678.3,0.37327]
[1727553743599,4.27199736,2678.4,2678.3,0.37327]
[1727553750501,3.82852079,2678.6,2678.4,0.37326]
[1727553750502,2.93199736,2678.5,2678.4,0.37326]
[1727553750703,2.93199736,2678.7,2678.4,3.2078]
[1727553750898,1.34,2678.7,2678.5,0.3703]
[1727553751098,1.34,2678.7,2678.6,0.74532]
[1727553751300,1.7228,2678.7,2678.6,0.74532]
[1727553751608,1.7228,2678.7,2678.6,0.37322]
[1727553752002,4.65288674,2678.7,2678.6,0.37322]
[1727553752401,1.7228,2678.7,2678.6,0.37322]
[1727553752608,4.65288674,2678.7,2678.6,0.37322]
[1727553754416,1.7228,2678.7,2678.6,0.37322]
[1727553754709,4.65288674,2678.7,2678.6,0.37322]
[1727553755507,1.7228,2678.7,2678.6,0.37322]
[1727553757797,4.65288674,2678.7,2678.6,0.37322]
[1727553757997,1.7228,2678.7,2678.6,0.37322]
[1727553758212,4.65288674,2678.7,2678.6,0.37322]
[1727553758715,1.7228,2678.7,2678.6,0.37322]
[1727553760307,1.7573,2678.7,2678.6,0.37322]
[1727553763500,0.0345,2678.7,2678.6,0.37322]
[1727553763700,0.0345,2678.7,2678.6,4.10682]
[1727553764805,0.0345,2678.7,2678.6,4.49382]
[1727553771019,0.4158,2678.7,2678.6,4.49382]
[1727553774019,0.4158,2678.7,2678.6,0.76022]
[1727553775512,0.3813,2678.7,2678.6,0.76022]
[1727553778916,0.3813,2678.7,2678.6,4.49382]
[1727553779113,0.3813,2678.7,2678.6,0.76022]
[1727553782823,0.3813,2678.7,2678.6,3.96802]
[1727553786618,0.3813,2678.7,2678.6,7.70162]
[1727553786827,0.3813,2678.7,2678.6,8.6347]
[1727553787826,1.7406,2678.9,2678.8,0.3732]
[1727553788021,4.66828674,2679.1,2679.0,0.37318]
[1727553788223,2.93008674,2679.3,2679.2,0.37315]
[1727553788427,0.3786,2679.3,2679.2,0.37315]
[1727553789023,0.3786,2679.3,2679.2,0.75455]
[1727553789335,0.3786,2679.3,2679.2,0.37315]
[1727553789624,1.7186,2679.3,2679.2,0.37315]
[1727553811146,2.09174,2679.3,2678.8,0.8008]
[1727553811448,0.7511,2679.2,2679.1,0.37315]
[1727553811657,2.0911,2679.2,2679.1,0.37315]
[1727553817651,2.0911,2679.2,2679.0,0.37317]
[1727553817652,6.19706,2679.2,2679.0,0.37317]
[1727553817848,0.37316,2679.1,2678.7,0.3959]
[1727553818052,1.34,2678.8,2678.7,0.3959]
[1727553818248,1.34,2678.8,2678.7,0.76912]
[1727553818456,1.34,2678.8,2678.7,1.70217]
[1727553821353,1.34,2679.0,2678.7,1.32895]
[1727553821561,1.34,2679.0,2678.9,3.2078]
[1727553822462,1.34,2679.0,2678.9,3.58099]
[1727553822661,1.34,2679.0,2678.9,0.37319]
[1727553822861,1.34,2679.0,2678.9,3.58099]
[1727553826163,4.27025596,2679.0,2678.9,3.58099]
[1727553826368,4.27025596,2679.0,2678.9,0.37319]
[1727553826756,4.27025596,2679.0,2678.9,3.58099]
[1727553829470,4.27025596,2679.0,2678.9,0.37319]
[1727553829667,4.27025596,2679.0,2678.9,3.58099]
[1727553830263,4.27025596,2679.0,2678.9,0.37319]
[1727553830467,4.27025596,2679.0,2678.9,3.58099]
[1727553832473,4.27025596,2679.0,2678.9,0.37319]